fUSD/lending_fUSD_20240521
["ID","MTS","AMOUNT","RATE_DAILY","PERIOD"]
[327695723,1716323462446,-500.0,0.00031232,6]
[327695724,1716323462456,-500.0,0.00031232,6]
[327695725,1716323462465,-837.11,0.00031232,6]
[327695726,1716323462475,-500.0,0.00031232,6]
[327695727,1716323462485,-699.83,0.00031232,6]
[327695728,1716323462495,-500.0,0.00031232,6]
[327695729,1716323462506,-500.0,0.00031232,6]
[327695730,1716323462516,-565.06,0.00031232,6]
[327695731,1716323462525,-866.24,0.00031232,6]
[327695732,1716323462536,-506.69,0.00031232,6]
[327695733,1716323462546,-500.0,0.00031232,6]
[327695734,1716323462556,-500.0,0.00031232,6]
[327695735,1716323462566,-500.0,0.00031232,6]
[327695736,1716323462575,-500.0,0.00031232,6]
[327695737,1716323462585,-500.0,0.00031232,6]
[327695738,1716323462594,-935.83,0.00031232,6]
[327695739,1716323462604,-500.0,0.00031232,6]
[327695740,1716323462613,-692.23,0.00031232,6]
[327695741,1716323462623,-500.0,0.00031232,6]
[327695742,1716323462632,-500.0,0.00031232,6]
[327695743,1716323462641,-2451.07,0.00031232,6]
[327695744,1716323462650,-257.31386,0.00031232,7]
[327695745,1716323462660,-691.69,0.00031232,6]
[327695746,1716323462669,-500.0,0.00031232,6]
[327695747,1716323462679,-513.48,0.00031232,6]
[327695748,1716323462688,-500.0,0.00031232,6]
[327695749,1716323462697,-500.0,0.00031232,6]
[327695750,1716323462706,-593.58,0.00031232,6]
[327695751,1716323462716,-500.0,0.00031232,6]
[327695752,1716323462726,-538.69,0.00031232,6]
[327695753,1716323462736,-648.25,0.00031232,6]
[327695754,1716323462746,-500.0,0.00031232,6]
[327695755,1716323462756,-500.0,0.00031232,6]
[327695756,1716323462766,-500.0,0.00031232,6]
[327695757,1716323462775,-664.05,0.00031232,6]
[327695758,1716323462785,-500.0,0.00031232,6]
[327695759,1716323462795,-500.0,0.00031232,6]
[327695760,1716323462804,-512.68,0.00031232,6]
[327695761,1716323462814,-500.0,0.00031232,6]
[327695762,1716323462823,-500.0,0.00031232,6]
[327695763,1716323462833,-500.0,0.00031232,6]
[327695764,1716323462845,-537.29,0.00031232,6]
[327695765,1716323462855,-781.31,0.00031232,6]
[327695766,1716323462865,-500.0,0.00031232,6]
[327695767,1716323462875,-336.72934384,0.00031232,6]
[327695768,1716323462886,-718.15,0.00031232,6]
[327695769,1716323462896,-500.0,0.00031232,6]
[327695770,1716323462906,-500.0,0.00031232,6]
[327695771,1716323462915,-500.0,0.00031232,6]
[327695772,1716323462925,-500.0,0.00031232,6]
[327695773,1716323462935,-500.0,0.00031232,6]
[327695774,1716323462944,-504.66,0.00031232,6]
[327695775,1716323462954,-151.0,0.00031232,7]
[327695776,1716323462964,-568.26,0.00031232,6]
[327695777,1716323462973,-279.91265029,0.00031232,6]
[327695778,1716323462983,-500.0,0.00031232,6]
[327695779,1716323462992,-556.57,0.00031232,6]
[327695780,1716323463002,-500.0,0.00031232,6]
[327695781,1716323463012,-1224.06,0.00031232,6]
[327695782,1716323463022,-304.93834761,0.00031232,6]
[327695783,1716323463031,-918.0,0.00031232,6]
[327695784,1716323463040,-500.0,0.00031232,6]
[327695785,1716323463050,-4492.58,0.00031232,6]
[327695786,1716323463059,-645.33,0.00031232,6]
[327695787,1716323463068,-151.0,0.00031232,7]
[327695788,1716323463078,-242.149988,0.00031232,7]
[327695789,1716323463090,-500.0,0.00031232,6]
[327695790,1716323463100,-675.42,0.00031232,6]
[327695791,1716323463111,-151.0,0.00031232,7]
[327695792,1716323463125,-809.04,0.00031232,6]
[327695793,1716323463135,-500.0,0.00031232,6]
[327695794,1716323463144,-500.0,0.00031232,6]
[327695795,1716323463219,-628.26,0.00031232,6]
[327695796,1716323463229,-904.2,0.00031232,6]
[327695797,1716323463238,-500.0,0.00031232,6]
[327695798,1716323463247,-976.95,0.00031232,6]
[327695799,1716323463256,-719.69,0.00031232,6]
[327695800,1716323463266,-1232.85,0.00031232,6]
[327695801,1716323463275,-500.0,0.00031232,6]
[327695802,1716323463284,-500.0,0.00031232,6]
[327695803,1716323463294,-1430.18,0.00031232,6]
[327695804,1716323463306,-1127.28,0.00031232,6]
[327695805,1716323463315,-500.0,0.00031232,6]
[327695806,1716323463325,-294.82,0.00031232,6]
[327695807,1716323463337,-500.0,0.00031232,6]
[327695808,1716323463346,-552.38,0.00031232,6]
[327695809,1716323463355,-2471.64,0.00031232,6]
[327695810,1716323463364,-678.6,0.00031232,6]
[327695811,1716323463373,-500.0,0.00031232,6]
[327695812,1716323463382,-614.85,0.00031232,6]
[327695813,1716323463391,-300.0,0.00031232,6]
[327695814,1716323463400,-5024.14,0.00031232,6]
[327695815,1716323463408,-500.0,0.00031232,6]
[327695816,1716323463417,-1078.89,0.00031232,6]
[327695817,1716323463426,-2888.18129604,0.00031232,6]
[327695819,1716323932238,-13196.80775601,0.000129,2]
[327695820,1716323932261,-590.40912467,0.000129,2]
[327695821,1716323932288,-187.61287982,0.000129,2]
[327695822,1716323932310,-190.35446174,0.000129,2]
[327695823,1716323932334,-882.98249872,0.00012998,2]
[327695824,1716323935954,155.0,0.00012899,2]
[327695825,1716323942455,300.0,0.00012999,2]
[327695826,1716323957908,210.75557856,0.00012999,2]
[327695827,1716323967771,-84496.83327904,0.00013,2]
[327695828,1716323974156,-2000000.0,0.00013,2]
[327695829,1716324063026,1000.0,0.00012,2]
[327695830,1716324089607,547665.6512368,0.00012,2]
[327695831,1716324091066,7519.47512195,0.00012,2]
[327695832,1716324096741,20222.25267184,0.00012,2]
[327695833,1716324105685,547665.6512368,0.00012,2]
[327695834,1716324108981,7516.27698139,0.00012,2]
[327695835,1716324112752,20222.25267184,0.00012,2]
[327695836,1716324121561,547665.6512368,0.00012,2]
[327695837,1716324128768,20222.25267184,0.00012,2]
[327695838,1716324141556,320294.73608814,0.00012,2]
[327695839,1716324148799,15663.31309432,0.00012,2]
[327695840,1716324347134,-603.74676419,0.000129,2]
[327695841,1716324349477,155.0,0.00012,2]
[327695842,1716324371439,155.96100922,0.00012,2]
[327695843,1716324439178,-954.64505937,0.000129,2]
[327695844,1716324454103,-439.02860674,0.000129,2]
[327695855,1716324632125,-164.06481566,0.000128,2]
[327695856,1716324632136,-128.5595697,0.000129,2]
[327695857,1716324632146,-419.10443598,0.000129,2]
[327695858,1716324632159,-963.12791108,0.000129,2]
[327695859,1716324632169,-334.7899138,0.000129,2]
[327695860,1716324632179,-164.06481566,0.000129,2]
[327695861,1716324632190,-150.0,0.00012959,2]
[327695862,1716324632200,-300.0,0.00012989,2]
[327695863,1716324632210,-151.94,0.0001299,2]
[327695864,1716324632220,-151.94,0.0001299,2]
[327695865,1716324632230,-151.94,0.0001299,2]
[327695866,1716324632239,-151.94,0.0001299,2]
[327695867,1716324632249,-151.94,0.0001299,2]
[327695868,1716324632259,-151.94,0.0001299,2]
[327695869,1716324632269,-151.94,0.0001299,2]
[327695870,1716324632279,-151.94,0.0001299,2]
[327695871,1716324632290,-151.94,0.0001299,2]
[327695872,1716324632300,-151.94,0.0001299,2]
[327695873,1716324632309,-151.94,0.0001299,2]
[327695874,1716324632320,-151.94,0.0001299,2]
[327695875,1716324632330,-151.94,0.0001299,2]
[327695876,1716324632340,-151.94,0.0001299,2]
[327695877,1716324632350,-151.94,0.0001299,2]
[327695878,1716324632360,-155.0,0.00012998,2]
[327695879,1716324632371,-3089.78671898,0.00012998,2]
[327695880,1716324632381,-856.77598148,0.00012998,2]
[327695881,1716324632391,-555.34830408,0.00012999,2]
[327695882,1716324632402,-2776.97105941,0.00012999,2]
[327695883,1716324632411,-143346.37838497,0.00013,2]
[327695884,1716324632428,-4400.0,0.00013,2]
[327695885,1716324632441,-3445.55880682,0.00013,2]
[327695886,1716324632452,-8302.32106482,0.00013,2]
[327695887,1716324632468,-492.771952,0.00013,2]
[327695888,1716324632485,-316.66262,0.00013,2]
[327695889,1716324632497,-469.3608413,0.00013,2]
[327695890,1716324632509,-16262.74757398,0.00013,2]
[327695891,1716324632529,-3595.84630269,0.00013,2]
[327695892,1716324632541,-447.78112382,0.00013,2]
[327695916,1716324637874,-5731.89280292,0.00013,2]
[327695917,1716324637887,-5897.93599999,0.00013,2]
[327695918,1716324637908,-719.13216772,0.00013,2]
[327695919,1716324637930,-3730.36434643,0.00013,2]
[327695920,1716324637942,-8449.0,0.00013,2]
[327695921,1716324637954,-2390.55985511,0.00013,2]
[327695922,1716324637966,-1908181.08195027,0.00013,2]
[327695923,1716324637976,-506435.3211791,0.00013,2]
[327695924,1716324637988,-3304.7964,0.00013,2]
[327695925,1716324637999,-3385.96953395,0.00013,2]
[327695926,1716324638028,-1054521.56509765,0.00013,2]
[327695927,1716324638038,-187.61287982,0.00013043,2]
[327695928,1716324638048,-6707.64,0.00013143,2]
[327695929,1716324638058,-158.33,0.00013243,2]
[327695930,1716324638067,-499.99,0.00013243,2]
[327695931,1716324638078,-3250.37,0.00013243,2]
[327695932,1716324638095,-7152.98,0.00013243,2]
[327695933,1716324638105,-529.06734071,0.00013871,2]
[327695934,1716324638115,-2222.04647422,0.00013871,2]
[327695935,1716324638126,-1122.99897418,0.00013873,2]
[327695936,1716324638136,-269.66317705,0.00013873,2]
[327695937,1716324638146,-154.47,0.00013973,2]
[327695938,1716324638156,-420.0,0.00014245,2]
[327695939,1716324638167,-690.73,0.00014988,2]
[327695940,1716324638177,-279.0,0.00015622,2]
[327695941,1716324638187,-1382.23234704,0.00015686,2]
[327695942,1716324638198,-14597.39,0.00016176,2]
[327695943,1716324638208,-234.23,0.00016385,2]
[327695944,1716324638219,-321.88,0.00016416,2]
[327695945,1716324638229,-15008.35,0.00016554,2]
[327695946,1716324638239,-150.0,0.00016575,2]
[327695947,1716324638249,-250.0,0.00016597,2]
[327695948,1716324638260,-500.0,0.0001665,2]
[327695949,1716324638270,-197.78,0.00016754,2]
[327695950,1716324638280,-500.0,0.00016788,2]
[327695951,1716324638290,-1630.01,0.00016912,2]
[327695952,1716324638301,-200.0,0.00016932,2]
[327695953,1716324638311,-250.0,0.00016954,2]
[327695954,1716324638322,-1361.90029117,0.00017,2]
[327695955,1716324638333,-1271.76,0.00017053,2]
[327695956,1716324638343,-1577.17,0.00017066,2]
[327695957,1716324638354,-5967.04616947,0.00017081,2]
[327695958,1716324638368,-17932.95383053,0.00017081,2]
[327695959,1716324638379,-1371.38,0.00017093,2]
[327695960,1716324638389,-690.73,0.00017252,2]
[327695961,1716324638400,-630.63,0.0001726,6]
[327695962,1716324638410,-155.32,0.00017437,2]
[327695963,1716324638420,-155.32,0.00017527,2]
[327695964,1716324638430,-155.32,0.00017618,2]
[327695965,1716324638440,-155.32,0.00017709,2]
[327695966,1716324638450,-155.32,0.000178,2]
[327695967,1716324638460,-181.58,0.00017869,2]
[327695968,1716324638470,-155.32,0.00017891,2]
[327695969,1716324638480,-155.32,0.00017982,2]
[327695970,1716324638490,-171.4,0.00018064,2]
[327695971,1716324638500,-155.32,0.00018073,2]
[327695972,1716324638516,-155.32,0.00018163,2]
[327695973,1716324638526,-155.32,0.00018254,2]
[327695974,1716324638535,-155.32,0.00018345,2]
[327695975,1716324638547,-1382.23234704,0.00018473,2]
[327695976,1716324638557,-410.32962451,0.00019,2]
[327695977,1716324638567,-539.6,0.000195,2]
[327695978,1716324638578,-647.36,0.000195,2]
[327695979,1716324638590,-690.73,0.00019516,2]
[327695980,1716324638600,-1630.01,0.00019652,2]
[327695981,1716324638610,-151.94,0.0001989,2]
[327695982,1716324638619,-33294.82706426,0.000199,3]
[327695983,1716324638629,-151.47148255,0.00019999,2]
[327695984,1716324638639,-8092.61446255,0.0002,4]
[327695985,1716324638650,-98378.04219089,0.00020267,2]
[327695986,1716324638660,-150.34,0.00020412,2]
[327695987,1716324638670,-1382.23234704,0.00021259,2]
[327695988,1716324638681,-690.73,0.0002178,2]
[327695989,1716324638691,-204.67,0.00021918,2]
[327695990,1716324638701,-150.0,0.00021918,2]
[327695991,1716324638712,-1630.01,0.00022391,2]
[327695992,1716324638722,-8797.87183734,0.00022774,2]
[327695993,1716324638732,-4618.40103546,0.00024,3]
[327695994,1716324638742,-690.73,0.00024044,2]
[327695995,1716324638752,-1382.23234704,0.00024045,2]
[327695996,1716324638762,-250.0,0.00024658,2]
[327695997,1716324638772,-2109.34265111,0.00024898,2]
[327695998,1716324638782,-2109.34265111,0.00024898,2]
[327695999,1716324638791,-2109.34265111,0.00024898,2]
[327696000,1716324638801,-167.38,0.00025458,2]
[327696001,1716324638811,-783.36,0.00025711,2]
[327696002,1716324638822,-2109.34265111,0.00025903,2]
[327696003,1716324638833,-1000.92302293,0.00025903,2]
[327696004,1716324638842,-154.47,0.00026274,2]
[327696005,1716324638852,-690.73,0.00026308,2]
[327696006,1716324638862,-1382.23234704,0.00026831,2]
[327696007,1716324638872,-153.90576893,0.00026881,2]
[327696008,1716324638881,-539.6,0.000271,2]
[327696009,1716324638892,-647.36,0.000271,2]
[327696010,1716324638902,-184.99231901,0.00027201,2]
[327696011,1716324638912,-428.05040213,0.00027611,2]
[327696012,1716324638922,-152.54522822,0.00027847,2]
[327696013,1716324638931,-152.54522822,0.00027932,2]
[327696014,1716324638941,-2109.34265111,0.0002807,2]
[327696015,1716324638951,-1000.92302293,0.0002807,2]
[327696016,1716324638961,-152.85016479,0.00028457,2]
[327696017,1716324638971,-690.73,0.00028571,2]
[327696018,1716324638982,-152.54522822,0.00028581,2]
[327696019,1716324638991,-783.36,0.00028925,2]
[327696020,1716324639001,-151.94,0.0002899,2]
[327696021,1716324639011,-17774.38417679,0.00029,2]
[327696022,1716324639021,-175.28423007,0.00029,2]
[327696023,1716324639031,-152.85016481,0.00029047,2]
[327696024,1716324639040,-1382.23234704,0.00029618,2]
[327696025,1716324639050,-167.49601557,0.000297,2]
[327696026,1716324639060,-152.54522822,0.00029904,2]
[327696027,1716324639070,-15221.3094748,0.0003,4]
[327696028,1716324639080,-1000.96536484,0.0003,4]
[327696029,1716324639090,-218.0,0.0003,2]
[327696030,1716324639100,-170.16,0.00030096,120]
[327696031,1716324639110,-539.6,0.000301,2]
[327696032,1716324639120,-647.36,0.000301,2]
[327696033,1716324639130,-10000.0,0.00030111,2]
[327696034,1716324639139,-2109.34265111,0.00030237,2]
[327696035,1716324639149,-1000.92302293,0.00030237,2]
[327696036,1716324639159,-1000.0,0.0003031,2]
[327696037,1716324639169,-1000.0,0.0003031,2]
[327696038,1716324639179,-152.54522822,0.00030323,7]
[327696039,1716324639189,-151.94,0.000304,2]
[327696040,1716324639199,-513.73177454,0.0003041,6]
[327696041,1716324639208,-500.0,0.0003041,6]
[327696042,1716324639218,-500.0,0.0003041,6]
[327696043,1716324639228,-500.0,0.0003041,6]
[327696044,1716324639238,-500.0,0.0003041,6]
[327696045,1716324639248,-500.0,0.0003041,6]
[327696046,1716324639257,-500.0,0.0003041,6]
[327696047,1716324639268,-507.330649,0.0003041,6]
[327696048,1716324639277,-500.0,0.0003041,6]
[327696049,1716324639286,-500.0,0.0003041,2]
[327696050,1716324639297,-500.0,0.0003041,6]
[327696051,1716324639306,-500.0,0.0003041,6]
[327696052,1716324639315,-500.0,0.0003041,6]
[327696053,1716324639326,-372.91844402,0.0003041,6]
[327696054,1716324639336,-500.0,0.0003041,6]
[327696055,1716324639346,-500.0,0.0003041,6]
[327696056,1716324639356,-500.0,0.0003041,6]
[327696057,1716324639366,-500.0,0.0003041,6]
[327696058,1716324639376,-500.0,0.0003041,6]
[327696059,1716324639386,-500.0,0.0003041,6]
[327696060,1716324639396,-500.0,0.0003041,6]
[327696061,1716324639406,-500.0,0.0003041,6]
[327696062,1716324639416,-500.0,0.0003041,6]
[327696063,1716324639426,-500.0,0.0003041,6]
[327696064,1716324639436,-500.0,0.0003041,6]
[327696065,1716324639445,-500.0,0.0003041,6]
[327696066,1716324639455,-500.0,0.0003041,6]
[327696067,1716324639464,-500.0,0.0003041,6]
[327696068,1716324639474,-500.0,0.0003041,6]
[327696069,1716324639485,-500.0,0.0003041,6]
[327696070,1716324639495,-500.0,0.0003041,6]
[327696071,1716324639505,-500.0,0.0003041,6]
[327696072,1716324639515,-500.0,0.0003041,6]
[327696073,1716324639528,-512.37,0.0003041,6]
[327696074,1716324639537,-500.0,0.0003041,6]
[327696075,1716324639547,-500.0,0.0003041,6]
[327696076,1716324639556,-612.61,0.0003041,6]
[327696077,1716324639567,-697.59,0.0003041,6]
[327696078,1716324639577,-500.0,0.0003041,6]
[327696079,1716324639587,-500.0,0.0003041,6]
[327696080,1716324639597,-500.0,0.0003041,6]
[327696081,1716324639608,-500.0,0.0003041,6]
[327696082,1716324639624,-500.0,0.0003041,6]
[327696083,1716324639639,-500.0,0.0003041,6]
[327696084,1716324639649,-500.0,0.0003041,6]
[327696085,1716324639660,-500.0,0.0003041,6]
[327696086,1716324639670,-500.0,0.0003041,6]
[327696087,1716324639680,-500.0,0.0003041,6]
[327696088,1716324639690,-779.86,0.0003041,6]
[327696089,1716324639700,-500.0,0.0003041,6]
[327696090,1716324639711,-500.0,0.0003041,6]
[327696091,1716324639722,-500.0,0.0003041,6]
[327696092,1716324639732,-500.0,0.0003041,6]
[327696093,1716324639742,-583.19,0.0003041,6]
[327696094,1716324639754,-500.0,0.0003041,6]
[327696095,1716324639764,-721.86,0.0003041,6]
[327696096,1716324639775,-721.09,0.0003041,6]
[327696097,1716324639785,-500.0,0.0003041,6]
[327696098,1716324639796,-500.0,0.0003041,6]
[327696099,1716324639806,-500.0,0.0003041,6]
[327696100,1716324639817,-500.0,0.0003041,6]
[327696101,1716324639828,-500.59872537,0.0003041,6]
[327696102,1716324639838,-500.0,0.0003041,6]
[327696103,1716324639849,-200.77559108,0.0003041,6]
[327696105,1716324639860,-500.0,0.0003041,6]
[327696106,1716324639870,-500.0,0.0003041,6]
[327696107,1716324639880,-500.0,0.0003041,6]
[327696108,1716324639890,-500.0,0.0003041,6]
[327696109,1716324639900,-500.0,0.0003041,6]
[327696110,1716324639911,-500.0,0.0003041,6]
[327696111,1716324639921,-576.41,0.0003041,6]
[327696112,1716324639931,-500.0,0.0003041,6]
[327696113,1716324639943,-553.38,0.0003041,6]
[327696114,1716324639954,-2042.56,0.0003041,6]
[327696115,1716324639964,-500.0,0.0003041,6]
[327696116,1716324639974,-576.85,0.0003041,6]
[327696117,1716324639984,-500.0,0.0003041,6]
[327696118,1716324639995,-500.0,0.0003041,6]
[327696119,1716324640005,-500.0,0.0003041,6]
[327696120,1716324640015,-500.0,0.0003041,6]
[327696121,1716324640025,-540.21,0.0003041,6]
[327696122,1716324640035,-500.0,0.0003041,6]
[327696123,1716324640045,-500.0,0.0003041,6]
[327696124,1716324640054,-500.0,0.0003041,6]
[327696125,1716324640064,-500.0,0.0003041,6]
[327696126,1716324640075,-500.0,0.0003041,6]
[327696127,1716324640084,-500.0,0.0003041,6]
[327696128,1716324640094,-500.0,0.0003041,6]
[327696129,1716324640103,-500.0,0.0003041,6]
[327696130,1716324640113,-500.0,0.0003041,6]
[327696131,1716324640122,-500.0,0.0003041,6]
[327696132,1716324640132,-500.0,0.0003041,6]
[327696133,1716324640142,-500.0,0.0003041,6]
[327696134,1716324640152,-500.0,0.0003041,6]
[327696135,1716324640162,-500.0,0.0003041,6]
[327696136,1716324640172,-500.0,0.0003041,6]
[327696137,1716324640181,-500.0,0.0003041,6]
[327696138,1716324640191,-500.0,0.0003041,6]
[327696139,1716324640201,-500.0,0.0003041,6]
[327696140,1716324640211,-500.0,0.0003041,6]
[327696141,1716324640221,-500.0,0.0003041,6]
[327696142,1716324640230,-765.0,0.0003041,6]
[327696143,1716324640240,-500.0,0.0003041,6]
[327696144,1716324640250,-500.0,0.0003041,6]
[327696145,1716324640260,-500.0,0.0003041,6]
[327696146,1716324640277,-500.0,0.0003041,6]
[327696147,1716324640286,-651.09,0.0003041,6]
[327696148,1716324640296,-500.0,0.0003041,6]
[327696149,1716324640306,-500.0,0.0003041,6]
[327696150,1716324640316,-500.0,0.0003041,6]
[327696151,1716324640327,-500.0,0.0003041,6]
[327696152,1716324640337,-562.85,0.0003041,6]
[327696153,1716324640347,-500.0,0.0003041,6]
[327696154,1716324640356,-500.0,0.0003041,6]
[327696155,1716324640366,-500.0,0.0003041,6]
[327696156,1716324640376,-674.2,0.0003041,6]
[327696157,1716324640386,-500.0,0.0003041,6]
[327696158,1716324640396,-500.0,0.0003041,6]
[327696159,1716324640405,-1020.05,0.0003041,6]
[327696160,1716324640415,-500.0,0.0003041,6]
[327696162,1716324640425,-500.0,0.0003041,6]
[327696164,1716324640435,-500.0,0.0003041,6]
[327696166,1716324640446,-523.55,0.0003041,6]
[327696168,1716324640455,-500.0,0.0003041,6]
[327696170,1716324640465,-534.61476436,0.0003041,4]
[327696172,1716324640475,-537.78,0.0003041,6]
[327696174,1716324640485,-500.0,0.0003041,6]
[327696176,1716324640495,-500.0,0.0003041,6]
[327696178,1716324640505,-500.0,0.0003041,6]
[327696180,1716324640520,-483.6076353,0.0003041,6]
[327696182,1716324640530,-500.0,0.0003041,6]
[327696184,1716324640540,-500.0,0.0003041,6]
[327696186,1716324640551,-500.0,0.0003041,6]
[327696188,1716324640560,-509.01,0.0003041,6]
[327696190,1716324640570,-892.49,0.0003041,6]
[327696191,1716324640581,-500.0,0.0003041,6]
[327696193,1716324640594,-500.0,0.0003041,6]
[327696195,1716324640603,-500.0,0.0003041,6]
[327696197,1716324640613,-500.0,0.0003041,6]
[327696199,1716324640623,-500.0,0.0003041,6]
[327696201,1716324640632,-1430.87,0.0003041,6]
[327696203,1716324640642,-500.0,0.0003041,6]
[327696205,1716324640652,-500.0,0.0003041,6]
[327696207,1716324640661,-500.0,0.0003041,6]
[327696209,1716324640671,-500.0,0.0003041,6]
[327696211,1716324640680,-1191.82,0.0003041,6]
[327696213,1716324640695,-599.74,0.0003041,6]
[327696216,1716324640710,-2059.7,0.0003041,6]
[327696218,1716324640725,-500.0,0.0003041,6]
[327696220,1716324640739,-500.0,0.0003041,6]
[327696223,1716324640752,-1027.37,0.0003041,6]
[327696225,1716324640763,-730.17,0.0003041,6]
[327696227,1716324640774,-500.0,0.0003041,6]
[327696229,1716324640786,-500.0,0.0003041,6]
[327696231,1716324640800,-565.5,0.0003041,6]
[327696233,1716324640813,-500.0,0.0003041,6]
[327696235,1716324640827,-614.8,0.0003041,6]
[327696238,1716324640839,-500.0,0.0003041,6]
[327696240,1716324640854,-500.0,0.0003041,6]
[327696242,1716324640867,-500.0,0.0003041,6]
[327696244,1716324640880,-500.0,0.0003041,6]
[327696246,1716324640893,-500.0,0.0003041,6]
[327696248,1716324640906,-899.07,0.0003041,6]
[327696251,1716324640920,-500.0,0.0003041,6]
[327696253,1716324640934,-500.0,0.0003041,6]
[327696255,1716324640948,-18437.86,0.0003041,6]
[327696257,1716324640961,-779.91,0.0003041,6]
[327696260,1716324640973,-500.0,0.0003041,6]
[327696262,1716324640985,-939.4,0.0003041,6]
[327696264,1716324640997,-658.17,0.0003041,6]
[327696266,1716324641008,-4186.79,0.0003041,6]
[327696268,1716324641020,-500.0,0.0003041,6]
[327696270,1716324641031,-619.17,0.0003041,6]
[327696273,1716324641044,-977.49,0.0003041,6]
[327696275,1716324641055,-5254.54,0.0003041,6]
[327696277,1716324641067,-784.93,0.0003041,6]
[327696279,1716324641083,-500.0,0.0003041,6]
[327696281,1716324641096,-500.0,0.0003041,6]
[327696284,1716324641107,-500.0,0.0003041,6]
[327696286,1716324641118,-450.28,0.0003041,6]
[327696288,1716324641129,-500.0,0.0003041,6]
[327696290,1716324641139,-2924.49,0.0003041,6]
[327696292,1716324641149,-725.81,0.0003041,6]
[327696294,1716324641159,-520.39,0.0003041,6]
[327696296,1716324641171,-776.16,0.0003041,6]
[327696298,1716324641182,-544.21,0.0003041,6]
[327696300,1716324641192,-500.0,0.0003041,6]
[327696303,1716324641203,-500.0,0.0003041,6]
[327696305,1716324641214,-1412.84,0.0003041,6]
[327696307,1716324641226,-832.47,0.0003041,6]
[327696309,1716324641238,-1304.57,0.0003041,6]
[327696311,1716324641249,-502.81,0.0003041,6]
[327696313,1716324641259,-1386.27,0.0003041,6]
[327696316,1716324641272,-500.0,0.0003041,6]
[327696318,1716324641284,-1005.3,0.0003041,6]
[327696320,1716324641296,-805.08,0.0003041,6]
[327696322,1716324641308,-500.0,0.0003041,6]
[327696325,1716324641320,-500.0,0.0003041,6]
[327696327,1716324641334,-1037.09,0.0003041,6]
[327696329,1716324641344,-500.0,0.0003041,6]
[327696331,1716324641355,-1454.99,0.0003041,6]
[327696333,1716324641364,-1440.62,0.0003041,6]
[327696335,1716324641374,-500.0,0.0003041,6]
[327696337,1716324641384,-574.56,0.0003041,6]
[327696339,1716324641394,-500.0,0.0003041,6]
[327696341,1716324641408,-500.0,0.0003041,6]
[327696343,1716324641419,-734.4,0.0003041,6]
[327696345,1716324641431,-500.0,0.0003041,6]
[327696347,1716324641443,-1439.68,0.0003041,6]
[327696350,1716324641458,-500.0,0.0003041,6]
[327696352,1716324641467,-714.94,0.0003041,6]
[327696354,1716324641478,-1863.56,0.0003041,6]
[327696356,1716324641489,-500.0,0.0003041,6]
[327696358,1716324641500,-9805.87,0.0003041,6]
[327696360,1716324641512,-500.0,0.0003041,6]
[327696362,1716324641526,-838.82,0.0003041,6]
[327696364,1716324641539,-696.43,0.0003041,6]